[Event "*** Titled Tuesday Blitz"]
[Site "Chess.com"]
[Date "2021.03.02"]
[Round "9"]
[White "iturrizaga"]
[Black "Gurvich_Vitaly"]
[Result "1-0"]
[WhiteElo "2848"]
[BlackElo "2609"]
[TimeControl "180+1"]
[EndTime "11:46:55 PST"]
[Termination "iturrizaga won by checkmate"]

1. c4 {[%clk 0:03:00.9]} 1... Nf6 {[%clk 0:02:37.4]} 2. g3 {[%clk 0:03:00.3]}
2... e5 {[%clk 0:02:34]} 3. Bg2 {[%clk 0:03:00.3]} 3... Bc5 {[%clk 0:02:33.6]}
4. Nf3 {[%clk 0:02:57.2]} 4... d6 {[%clk 0:02:31.8]} 5. O-O {[%clk 0:02:56.3]}
5... O-O {[%clk 0:02:31.6]} 6. d4 {[%clk 0:02:54.4]} 6... exd4 {[%clk
0:02:31.3]} 7. Nxd4 {[%clk 0:02:55.3]} 7... h6 {[%clk 0:02:31.3]} 8. Nc3 {[%clk
0:02:55.5]} 8... a6 {[%clk 0:02:27.1]} 9. b3 {[%clk 0:02:52.1]} 9... Nbd7 {[%clk
0:02:17.5]} 10. Bb2 {[%clk 0:02:47.5]} 10... Re8 {[%clk 0:02:17.4]} 11. Qd2
{[%clk 0:02:43.7]} 11... Ne5 {[%clk 0:02:16.8]} 12. Rad1 {[%clk 0:02:42.6]}
12... Rb8 {[%clk 0:02:12.8]} 13. h3 {[%clk 0:02:40.6]} 13... Qe7 {[%clk
0:02:10.1]} 14. Kh1 {[%clk 0:02:11.3]} 14... Bd7 {[%clk 0:02:00.7]} 15. e3
{[%clk 0:02:08.3]} 15... Nc6 {[%clk 0:01:58.2]} 16. Nde2 {[%clk 0:02:04]} 16...
b5 {[%clk 0:01:53]} 17. cxb5 {[%clk 0:02:01.9]} 17... axb5 {[%clk 0:01:53.9]}
18. Nf4 {[%clk 0:02:01.9]} 18... b4 {[%clk 0:01:22.1]} 19. Ncd5 {[%clk
0:02:00.6]} 19... Nxd5 {[%clk 0:01:21.9]} 20. Nxd5 {[%clk 0:02:01.2]} 20... Qf8
{[%clk 0:01:22.1]} 21. Nxc7 {[%clk 0:01:59.4]} 21... Red8 {[%clk 0:01:18.9]} 22.
Nd5 {[%clk 0:01:49.3]} 22... Ra8 {[%clk 0:01:15.1]} 23. Ba1 {[%clk 0:01:45]}
23... Ra7 {[%clk 0:01:15.1]} 24. Rc1 {[%clk 0:01:40.8]} 24... Rda8 {[%clk
0:01:14.5]} 25. Rc2 {[%clk 0:01:41.1]} 25... Qc8 {[%clk 0:01:11.9]} 26. Kh2
{[%clk 0:01:36.4]} 26... Qd8 {[%clk 0:01:11]} 27. Rfc1 {[%clk 0:01:33.1]} 27...
Ra5 {[%clk 0:00:59.7]} 28. Nf4 {[%clk 0:01:28.1]} 28... R8a7 {[%clk 0:00:51.5]}
29. Bxc6 {[%clk 0:01:14.2]} 29... Bxc6 {[%clk 0:00:51.5]} 30. Rxc5 {[%clk
0:01:14.5]} 30... Rxa2 {[%clk 0:00:51.4]} 31. R5c2 {[%clk 0:01:10]} 31... Rxc2
{[%clk 0:00:48]} 32. Rxc2 {[%clk 0:00:52.1]} 32... Rxa1 {[%clk 0:00:45.4]} 33.
Rxc6 {[%clk 0:00:51.7]} 33... Qa8 {[%clk 0:00:45.5]} 34. Rc1 {[%clk 0:00:44]}
34... Ra2 {[%clk 0:00:43.4]} 35. Rc2 {[%clk 0:00:44.3]} 35... Ra1 {[%clk
0:00:43.5]} 36. Qd5 {[%clk 0:00:42.2]} 36... Qd8 {[%clk 0:00:36.3]} 37. Rd2
{[%clk 0:00:36.1]} 37... g5 {[%clk 0:00:28.3]} 38. Nh5 {[%clk 0:00:32.5]} 38...
Qe7 {[%clk 0:00:22]} 39. Qd4 {[%clk 0:00:28.1]} 39... Re1 {[%clk 0:00:17.2]} 40.
Qg7# {[%clk 0:00:27.5]} 1-0

[Event "*** Titled Tuesday Blitz"]
[Site "Chess.com"]
[Date "2021.03.02"]
[Round "9"]
[White "Niktlt"]
[Black "manipun1"]
[Result "1-0"]
[WhiteElo "2400"]
[BlackElo "2244"]
[TimeControl "180+1"]
[EndTime "11:46:56 PST"]
[Termination "Niktlt won on time"]

1. c4 {[%clk 0:03:00.9]} 1... f5 {[%clk 0:02:54.8]} 2. Nc3 {[%clk 0:02:53.7]}
2... Nf6 {[%clk 0:02:53.9]} 3. g3 {[%clk 0:02:53.5]} 3... g6 {[%clk 0:02:49.9]}
4. Bg2 {[%clk 0:02:53.5]} 4... Bg7 {[%clk 0:02:49.3]} 5. d4 {[%clk 0:02:54.1]}
5... d6 {[%clk 0:02:47.2]} 6. Nf3 {[%clk 0:02:53.3]} 6... O-O {[%clk 0:02:46.4]}
7. O-O {[%clk 0:02:53.7]} 7... c6 {[%clk 0:02:45.5]} 8. d5 {[%clk 0:02:51.1]}
8... e5 {[%clk 0:02:41.8]} 9. dxe6 {[%clk 0:02:50.1]} 9... Bxe6 {[%clk
0:02:41.3]} 10. b3 {[%clk 0:02:44.9]} 10... Qe7 {[%clk 0:02:38.6]} 11. Bb2
{[%clk 0:02:41.9]} 11... Na6 {[%clk 0:02:33.3]} 12. e3 {[%clk 0:02:41.2]} 12...
Rad8 {[%clk 0:02:29.4]} 13. Qc2 {[%clk 0:02:40.8]} 13... Nc5 {[%clk 0:02:28.1]}
14. Nd4 {[%clk 0:02:40.3]} 14... Bc8 {[%clk 0:02:18.1]} 15. Rad1 {[%clk
0:02:39.6]} 15... Ng4 {[%clk 0:02:15.8]} 16. b4 {[%clk 0:02:24.7]} 16... Ne6
{[%clk 0:01:56]} 17. Nf3 {[%clk 0:02:19]} 17... Ne5 {[%clk 0:01:49.8]} 18. Nxe5
{[%clk 0:02:17.4]} 18... dxe5 {[%clk 0:01:49.1]} 19. Qb3 {[%clk 0:02:17.3]}
19... e4 {[%clk 0:01:47.3]} 20. h4 {[%clk 0:02:17.4]} 20... Rxd1 {[%clk
0:01:18]} 21. Rxd1 {[%clk 0:02:17]} 21... Rd8 {[%clk 0:01:18.5]} 22. Rxd8+
{[%clk 0:02:16.5]} 22... Nxd8 {[%clk 0:01:17.8]} 23. Bf1 {[%clk 0:02:12]} 23...
Be6 {[%clk 0:01:16.4]} 24. Qa4 {[%clk 0:02:12.2]} 24... a6 {[%clk 0:01:14.7]}
25. Qa5 {[%clk 0:02:11.9]} 25... Nf7 {[%clk 0:01:12.3]} 26. Nd1 {[%clk
0:02:05.7]} 26... Qd7 {[%clk 0:00:39.7]} 27. Bxg7 {[%clk 0:01:59.1]} 27... Kxg7
{[%clk 0:00:39.2]} 28. Nc3 {[%clk 0:01:59.2]} 28... Qd2 {[%clk 0:00:38.4]} 29.
Na4 {[%clk 0:01:55.3]} 29... Qc1 {[%clk 0:00:35]} 30. Kg2 {[%clk 0:01:47.7]}
30... Bxc4 {[%clk 0:00:32.3]} 31. Bxc4 {[%clk 0:01:48.6]} 31... Qxc4 {[%clk
0:00:31.9]} 32. Nc5 {[%clk 0:01:49.5]} 32... Qe2 {[%clk 0:00:22.3]} 33. Ne6+
{[%clk 0:01:07.5]} 33... Kf6 {[%clk 0:00:21.3]} 34. Nd4 {[%clk 0:01:07]} 34...
Qc4 {[%clk 0:00:17.9]} 35. Qb6 {[%clk 0:01:03.2]} 35... Qxa2 {[%clk 0:00:16.2]}
36. Qxb7 {[%clk 0:01:01.3]} 36... Qc4 {[%clk 0:00:12.2]} 37. Nxc6 {[%clk
0:00:55.5]} 37... Qd5 {[%clk 0:00:06.3]} 38. Qxa6 {[%clk 0:00:53]} 38... Kg7
{[%clk 0:00:05.8]} 39. b5 {[%clk 0:00:49.1]} 39... Nd6 {[%clk 0:00:04.1]} 40.
Nd4 {[%clk 0:00:47.9]} 1-0

[Event "*** Titled Tuesday Blitz"]
[Site "Chess.com"]
[Date "2021.03.02"]
[Round "9"]
[White "esapunov"]
[Black "wonderfultime"]
[Result "0-1"]
[WhiteElo "2712"]
[BlackElo "2918"]
[TimeControl "180+1"]
[EndTime "11:46:58 PST"]
[Termination "wonderfultime won by resignation"]

1. c4 {[%clk 0:03:00.9]} 1... c6 {[%clk 0:02:58.3]} 2. Nf3 {[%clk 0:03:00.6]}
2... d5 {[%clk 0:02:58.8]} 3. b3 {[%clk 0:03:01.2]} 3... Nf6 {[%clk 0:02:59.4]}
4. Bb2 {[%clk 0:03:01.3]} 4... Bg4 {[%clk 0:03:00.1]} 5. e3 {[%clk 0:03:01]}
5... e6 {[%clk 0:03:00.7]} 6. h3 {[%clk 0:03:01.2]} 6... Bh5 {[%clk 0:03:00.8]}
7. Nc3 {[%clk 0:03:01.3]} 7... Nbd7 {[%clk 0:03:01.2]} 8. g4 {[%clk 0:03:01.5]}
8... Bg6 {[%clk 0:03:01.4]} 9. Nh4 {[%clk 0:03:01.8]} 9... Bd6 {[%clk
0:03:00.2]} 10. Nxg6 {[%clk 0:03:00.7]} 10... hxg6 {[%clk 0:03:01.1]} 11. d4
{[%clk 0:02:50.4]} 11... Qe7 {[%clk 0:02:58.8]} 12. Bg2 {[%clk 0:02:46.3]} 12...
g5 {[%clk 0:02:55.6]} 13. Qc2 {[%clk 0:02:40.9]} 13... Rd8 {[%clk 0:02:50.1]}
14. O-O-O {[%clk 0:02:35.2]} 14... Ba3 {[%clk 0:02:37.7]} 15. f4 {[%clk
0:02:21.4]} 15... gxf4 {[%clk 0:02:27.2]} 16. exf4 {[%clk 0:02:19.8]} 16... dxc4
{[%clk 0:02:20.1]} 17. bxc4 {[%clk 0:02:19.2]} 17... Qb4 {[%clk 0:02:20]} 18.
Qb3 {[%clk 0:02:16.9]} 18... Bxb2+ {[%clk 0:02:09.5]} 19. Kxb2 {[%clk
0:02:16.5]} 19... Qb6 {[%clk 0:01:49.6]} 20. f5 {[%clk 0:02:02.1]} 20... exf5
{[%clk 0:01:47.8]} 21. Rhe1+ {[%clk 0:02:00.6]} 21... Kf8 {[%clk 0:01:47.9]} 22.
gxf5 {[%clk 0:01:47.4]} 22... Rh4 {[%clk 0:01:48.1]} 23. d5 {[%clk 0:01:36.4]}
23... Rxc4 {[%clk 0:01:40.9]} 24. dxc6 {[%clk 0:01:21.9]} 24... Rb4 {[%clk
0:01:34.7]} 25. cxd7 {[%clk 0:01:19.4]} 25... Rxb3+ {[%clk 0:01:35.1]} 26. axb3
{[%clk 0:01:19.1]} 26... Rxd7 {[%clk 0:01:35.5]} 27. Rxd7 {[%clk 0:01:12.4]}
27... Nxd7 {[%clk 0:01:36.4]} 28. Re2 {[%clk 0:01:11.3]} 28... Nc5 {[%clk
0:01:35.3]} 29. Bd5 {[%clk 0:01:09.7]} 29... Nd3+ {[%clk 0:01:35.9]} 30. Kb1
{[%clk 0:01:02]} 30... Qg1+ {[%clk 0:01:30.2]} 31. Kc2 {[%clk 0:00:58.6]} 31...
Nb4+ {[%clk 0:01:30.5]} 32. Kb2 {[%clk 0:00:57.4]} 32... Qd4 {[%clk 0:01:14]}
33. Bxb7 {[%clk 0:00:56.2]} 33... Qd3 {[%clk 0:00:50.7]} 34. Be4 {[%clk
0:00:51.5]} 34... Qxh3 {[%clk 0:00:49.6]} 35. Rd2 {[%clk 0:00:46.9]} 35... Qe3
{[%clk 0:00:47.5]} 36. Rd7 {[%clk 0:00:44.8]} 36... Qf2+ {[%clk 0:00:46.5]} 37.
Ka3 {[%clk 0:00:43.9]} 37... Qc5 {[%clk 0:00:47]} 38. Kb2 {[%clk 0:00:40.2]}
38... a5 {[%clk 0:00:45.9]} 39. Rd2 {[%clk 0:00:38]} 39... Qe5 {[%clk
0:00:45.6]} 40. Rg2 {[%clk 0:00:27.2]} 40... Qd4 {[%clk 0:00:44.5]} 41. Rh2
{[%clk 0:00:24.6]} 41... Na6 {[%clk 0:00:38.7]} 42. Re2 {[%clk 0:00:21.4]} 42...
Nc5 {[%clk 0:00:36.4]} 43. Bc6 {[%clk 0:00:21.4]} 43... Nd3+ {[%clk 0:00:36.8]}
44. Kc2 {[%clk 0:00:20.9]} 44... Nb4+ {[%clk 0:00:37]} 45. Kb2 {[%clk 0:00:21]}
45... Nxc6 {[%clk 0:00:37.9]} 0-1

[Event "*** Titled Tuesday Blitz"]
[Site "Chess.com"]
[Date "2021.03.02"]
[Round "9"]
[White "bratkoo"]
[Black "Gloomy_Wanderer"]
[Result "1-0"]
[WhiteElo "2531"]
[BlackElo "2677"]
[TimeControl "180+1"]
[EndTime "11:46:58 PST"]
[Termination "bratkoo won on time"]

1. e4 {[%clk 0:02:57]} 1... c5 {[%clk 0:03:00]} 2. Nf3 {[%clk 0:02:54.6]} 2...
a6 {[%clk 0:03:00.3]} 3. Nc3 {[%clk 0:02:32.7]} 3... e6 {[%clk 0:03:00.1]} 4. d4
{[%clk 0:02:31]} 4... b5 {[%clk 0:03:00.5]} 5. d5 {[%clk 0:02:27.1]} 5... d6
{[%clk 0:03:00.2]} 6. a4 {[%clk 0:02:23.2]} 6... b4 {[%clk 0:02:59.9]} 7. Ne2
{[%clk 0:02:19.3]} 7... exd5 {[%clk 0:02:58.6]} 8. exd5 {[%clk 0:02:15.5]} 8...
Be7 {[%clk 0:02:57.7]} 9. Ng3 {[%clk 0:02:13.8]} 9... Nf6 {[%clk 0:02:56.4]} 10.
Bc4 {[%clk 0:02:07]} 10... O-O {[%clk 0:02:56.3]} 11. O-O {[%clk 0:02:05.4]}
11... Bg4 {[%clk 0:02:44.4]} 12. h3 {[%clk 0:02:03.5]} 12... Bxf3 {[%clk
0:02:44.1]} 13. Qxf3 {[%clk 0:02:04.4]} 13... Nbd7 {[%clk 0:02:44.6]} 14. Bf4
{[%clk 0:02:04.9]} 14... Nb6 {[%clk 0:02:35.2]} 15. b3 {[%clk 0:02:01.6]} 15...
g6 {[%clk 0:02:28.4]} 16. Rfe1 {[%clk 0:01:55.4]} 16... Nfd7 {[%clk 0:02:03.5]}
17. Ne4 {[%clk 0:01:45.7]} 17... Qc7 {[%clk 0:01:24.6]} 18. Qg3 {[%clk
0:01:32.9]} 18... Nc8 {[%clk 0:01:12.9]} 19. a5 {[%clk 0:01:30.8]} 19... Nf6
{[%clk 0:00:57.3]} 20. Bg5 {[%clk 0:01:06.8]} 20... Qd8 {[%clk 0:00:33.1]} 21.
Nxf6+ {[%clk 0:00:35.8]} 21... Bxf6 {[%clk 0:00:34]} 22. Bxf6 {[%clk 0:00:36.5]}
22... Qxf6 {[%clk 0:00:34.5]} 23. Qd3 {[%clk 0:00:37.4]} 23... Ne7 {[%clk
0:00:29.9]} 24. Bxa6 {[%clk 0:00:35.9]} 24... Nxd5 {[%clk 0:00:28]} 25. Bb7
{[%clk 0:00:31.6]} 25... Nf4 {[%clk 0:00:28.3]} 26. Qf3 {[%clk 0:00:31.5]} 26...
Rae8 {[%clk 0:00:22.5]} 27. a6 {[%clk 0:00:29.1]} 27... Ne2+ {[%clk 0:00:22.5]}
28. Kh1 {[%clk 0:00:24.4]} 28... Qb2 {[%clk 0:00:04.2]} 29. a7 {[%clk
0:00:20.9]} 1-0

[Event "*** Titled Tuesday Blitz"]
[Site "Chess.com"]
[Date "2021.03.02"]
[Round "9"]
[White "cstevens1"]
[Black "Problematique_99"]
[Result "1-0"]
[WhiteElo "2630"]
[BlackElo "2457"]
[TimeControl "180+1"]
[EndTime "11:46:59 PST"]
[Termination "cstevens1 won by checkmate"]

1. e4 {[%clk 0:02:12.8]} 1... c5 {[%clk 0:02:57]} 2. Nf3 {[%clk 0:02:12.8]} 2...
Nc6 {[%clk 0:02:56.7]} 3. Nc3 {[%clk 0:02:12.7]} 3... g6 {[%clk 0:02:50.4]} 4.
Bb5 {[%clk 0:02:12.8]} 4... Bg7 {[%clk 0:02:48.8]} 5. Bxc6 {[%clk 0:02:13.2]}
5... bxc6 {[%clk 0:02:48.6]} 6. d3 {[%clk 0:02:13.9]} 6... d6 {[%clk 0:02:48.6]}
7. Be3 {[%clk 0:02:14.1]} 7... Nf6 {[%clk 0:02:47.3]} 8. h3 {[%clk 0:02:13.7]}
8... O-O {[%clk 0:02:47]} 9. Qd2 {[%clk 0:02:14.3]} 9... Rb8 {[%clk 0:02:43.5]}
10. Rb1 {[%clk 0:02:14.2]} 10... Nd7 {[%clk 0:02:31.7]} 11. Bh6 {[%clk
0:02:12.8]} 11... e5 {[%clk 0:02:25.8]} 12. O-O {[%clk 0:02:11.3]} 12... Bxh6
{[%clk 0:02:04.5]} 13. Qxh6 {[%clk 0:02:09.7]} 13... Qf6 {[%clk 0:02:05.4]} 14.
Nh2 {[%clk 0:01:55.7]} 14... Qg7 {[%clk 0:02:05.1]} 15. Qd2 {[%clk 0:01:46.1]}
15... f5 {[%clk 0:01:59.2]} 16. exf5 {[%clk 0:01:45.7]} 16... gxf5 {[%clk
0:01:56.4]} 17. f4 {[%clk 0:01:46.2]} 17... Kh8 {[%clk 0:01:53.7]} 18. fxe5
{[%clk 0:01:28.6]} 18... Nxe5 {[%clk 0:01:45.7]} 19. Kh1 {[%clk 0:01:14.1]}
19... Be6 {[%clk 0:01:40.7]} 20. b3 {[%clk 0:00:57.4]} 20... Rg8 {[%clk
0:01:34.5]} 21. Rf2 {[%clk 0:00:44.6]} 21... Rb4 {[%clk 0:01:25.5]} 22. Rbf1
{[%clk 0:00:25]} 22... Rh4 {[%clk 0:01:20.1]} 23. Nf3 {[%clk 0:00:09.5]} 23...
Nxf3 {[%clk 0:00:48.4]} 24. Rxf3 {[%clk 0:00:10.4]} 24... f4 {[%clk 0:00:29.5]}
25. Rxf4 {[%clk 0:00:10.6]} 25... Rxf4 {[%clk 0:00:23.8]} 26. Rxf4 {[%clk
0:00:11]} 26... Bxh3 {[%clk 0:00:23.9]} 27. Rf2 {[%clk 0:00:11]} 27... Qg3
{[%clk 0:00:21]} 28. Ne4 {[%clk 0:00:10.8]} 28... Qh4 {[%clk 0:00:14.8]} 29.
Qc3+ {[%clk 0:00:10.8]} 29... Rg7 {[%clk 0:00:11.7]} 30. Rf8# {[%clk 0:00:11]}
1-0

[Event "*** Titled Tuesday Blitz"]
[Site "Chess.com"]
[Date "2021.03.02"]
[Round "9"]
[White "Lagmantr"]
[Black "wadsy27"]
[Result "0-1"]
[WhiteElo "2726"]
[BlackElo "2553"]
[TimeControl "180+1"]
[EndTime "11:47:03 PST"]
[Termination "wadsy27 won on time"]

1. g3 {[%clk 0:03:00.9]} 1... d5 {[%clk 0:02:57.9]} 2. Bg2 {[%clk 0:03:01.5]}
2... Nf6 {[%clk 0:02:58.5]} 3. b3 {[%clk 0:03:00.1]} 3... c6 {[%clk 0:02:59.2]}
4. Bb2 {[%clk 0:03:00.3]} 4... Bf5 {[%clk 0:02:59.1]} 5. e3 {[%clk 0:03:00.5]}
5... e6 {[%clk 0:02:55.6]} 6. d3 {[%clk 0:03:00.7]} 6... h6 {[%clk 0:02:55.2]}
7. Nd2 {[%clk 0:03:01.2]} 7... a5 {[%clk 0:02:53.9]} 8. a3 {[%clk 0:02:59.6]}
8... Be7 {[%clk 0:02:52.9]} 9. Ne2 {[%clk 0:02:59.6]} 9... Bh7 {[%clk
0:02:53.2]} 10. O-O {[%clk 0:02:59.7]} 10... O-O {[%clk 0:02:53.1]} 11. h3
{[%clk 0:02:58.3]} 11... Nbd7 {[%clk 0:02:51.8]} 12. Kh2 {[%clk 0:02:53.8]}
12... b5 {[%clk 0:02:50.9]} 13. a4 {[%clk 0:02:52.6]} 13... Qb6 {[%clk 0:02:42]}
14. f4 {[%clk 0:02:41.8]} 14... bxa4 {[%clk 0:02:26.4]} 15. Rxa4 {[%clk
0:02:40.6]} 15... Nc5 {[%clk 0:02:27.1]} 16. Ra1 {[%clk 0:02:40.5]} 16... a4
{[%clk 0:02:27.4]} 17. Bd4 {[%clk 0:02:36.6]} 17... axb3 {[%clk 0:02:23.9]} 18.
Rxa8 {[%clk 0:02:37.5]} 18... Rxa8 {[%clk 0:02:19.1]} 19. Nxb3 {[%clk
0:02:38.1]} 19... Qb5 {[%clk 0:02:14.2]} 20. Nxc5 {[%clk 0:02:30.5]} 20... Bxc5
{[%clk 0:02:14.1]} 21. Bxf6 {[%clk 0:02:30.2]} 21... gxf6 {[%clk 0:02:13.3]} 22.
Nd4 {[%clk 0:02:24.9]} 22... Bxd4 {[%clk 0:02:07.4]} 23. exd4 {[%clk 0:02:25.8]}
23... Qb4 {[%clk 0:01:59.7]} 24. Qg4+ {[%clk 0:01:52.6]} 24... Bg6 {[%clk
0:01:59.7]} 25. f5 {[%clk 0:01:51.5]} 25... exf5 {[%clk 0:01:54.2]} 26. Rxf5
{[%clk 0:01:52.4]} 26... Ra2 {[%clk 0:01:49.8]} 27. Rxf6 {[%clk 0:01:41.9]}
27... Rxc2 {[%clk 0:01:49]} 28. Rxg6+ {[%clk 0:01:42.1]} 28... fxg6 {[%clk
0:01:48.7]} 29. Qxg6+ {[%clk 0:01:43]} 29... Kf8 {[%clk 0:01:48.6]} 30. Qxh6+
{[%clk 0:01:40.1]} 30... Ke8 {[%clk 0:01:47.9]} 31. Qe3+ {[%clk 0:01:31.3]}
31... Kd7 {[%clk 0:01:44.8]} 32. h4 {[%clk 0:01:25]} 32... Qd2 {[%clk
0:01:43.9]} 33. Qf3 {[%clk 0:01:25.2]} 33... Qf2 {[%clk 0:01:41.2]} 34. Qxf2
{[%clk 0:01:12.9]} 34... Rxf2 {[%clk 0:01:40.8]} 35. g4 {[%clk 0:01:12.8]} 35...
Rf4 {[%clk 0:01:30.6]} 36. h5 {[%clk 0:01:02.9]} 36... Ke7 {[%clk 0:01:29.8]}
37. Kg3 {[%clk 0:00:59.2]} 37... Rxd4 {[%clk 0:01:29.8]} 38. Bf1 {[%clk
0:00:59.9]} 38... c5 {[%clk 0:01:27.7]} 39. g5 {[%clk 0:00:15.3]} 39... c4
{[%clk 0:01:26.7]} 40. h6 {[%clk 0:00:14.6]} 40... Kf7 {[%clk 0:01:25.1]} 41.
Kf2 {[%clk 0:00:14.6]} 41... c3 {[%clk 0:01:20.9]} 42. Ke3 {[%clk 0:00:04.1]}
42... Rg4 {[%clk 0:01:19]} 43. Bh3 {[%clk 0:00:02.7]} 43... d4+ {[%clk 0:01:17]}
44. Kf3 {[%clk 0:00:02.8]} 44... Rxg5 {[%clk 0:01:10.1]} 45. Ke2 {[%clk
0:00:03.1]} 45... Rh5 {[%clk 0:01:07.5]} 46. Bg2 {[%clk 0:00:03.3]} 46... Rh2
{[%clk 0:01:06]} 47. Kf3 {[%clk 0:00:01.8]} 47... Rxg2 {[%clk 0:01:05.7]} 48. h7
{[%clk 0:00:02]} 48... Kg7 {[%clk 0:01:04.6]} 49. h8=Q+ {[%clk 0:00:02.9]} 49...
Kxh8 {[%clk 0:01:04.6]} 50. Kxg2 {[%clk 0:00:03.8]} 50... c2 {[%clk 0:01:05]}
0-1

[Event "*** Titled Tuesday Blitz"]
[Site "Chess.com"]
[Date "2021.03.02"]
[Round "9"]
[White "AldokhinIvan"]
[Black "Schachspielerr"]
[Result "1-0"]
[WhiteElo "2538"]
[BlackElo "2672"]
[TimeControl "180+1"]
[EndTime "11:47:04 PST"]
[Termination "AldokhinIvan won by checkmate"]

1. e4 {[%clk 0:03:00.5]} 1... c6 {[%clk 0:02:44.6]} 2. Nc3 {[%clk 0:02:53.4]}
2... d5 {[%clk 0:02:44.5]} 3. d4 {[%clk 0:02:54]} 3... a6 {[%clk 0:02:44.2]} 4.
f3 {[%clk 0:02:45.3]} 4... g6 {[%clk 0:02:43.5]} 5. Be3 {[%clk 0:02:44.2]} 5...
Bg7 {[%clk 0:02:43.4]} 6. Qd2 {[%clk 0:02:44.8]} 6... b5 {[%clk 0:02:43.6]} 7.
O-O-O {[%clk 0:02:42.7]} 7... Be6 {[%clk 0:02:36.7]} 8. Nge2 {[%clk 0:02:37.5]}
8... Nd7 {[%clk 0:02:04.1]} 9. Nf4 {[%clk 0:02:33.3]} 9... Nb6 {[%clk
0:02:04.2]} 10. Nxe6 {[%clk 0:02:30.5]} 10... fxe6 {[%clk 0:02:05.1]} 11. Qe1
{[%clk 0:02:01.5]} 11... Nf6 {[%clk 0:02:02]} 12. e5 {[%clk 0:01:56.6]} 12...
Nfd7 {[%clk 0:02:01.9]} 13. h4 {[%clk 0:01:52.3]} 13... Nc4 {[%clk 0:01:55.3]}
14. h5 {[%clk 0:01:42.8]} 14... Qa5 {[%clk 0:01:54.8]} 15. Bd2 {[%clk
0:01:20.6]} 15... Nxd2 {[%clk 0:01:29.9]} 16. Qxd2 {[%clk 0:01:20.3]} 16... c5
{[%clk 0:01:21]} 17. h6 {[%clk 0:01:10]} 17... Bf8 {[%clk 0:01:21]} 18. dxc5
{[%clk 0:00:49.2]} 18... Nxc5 {[%clk 0:01:07.8]} 19. Kb1 {[%clk 0:00:49.2]}
19... O-O-O {[%clk 0:01:04.5]} 20. Rh4 {[%clk 0:00:35.1]} 20... Qc7 {[%clk
0:00:51.5]} 21. Bxb5 {[%clk 0:00:24.3]} 21... Qxe5 {[%clk 0:00:39.8]} 22. Bf1
{[%clk 0:00:16.4]} 22... g5 {[%clk 0:00:32.2]} 23. Rb4 {[%clk 0:00:12.9]} 23...
Bxh6 {[%clk 0:00:31.7]} 24. Na4 {[%clk 0:00:12.3]} 24... Nxa4 {[%clk 0:00:18.5]}
25. Bxa6+ {[%clk 0:00:11.4]} 25... Kc7 {[%clk 0:00:16.9]} 26. Rxa4 {[%clk
0:00:07.6]} 26... Rb8 {[%clk 0:00:17]} 27. Qa5+ {[%clk 0:00:07.4]} 27... Rb6
{[%clk 0:00:17.5]} 28. Qc5+ {[%clk 0:00:06.8]} 28... Rc6 {[%clk 0:00:16.4]} 29.
Qxe7+ {[%clk 0:00:06.8]} 29... Kb6 {[%clk 0:00:12.5]} 30. Qb7+ {[%clk
0:00:06.7]} 30... Kc5 {[%clk 0:00:12.6]} 31. Qb4# {[%clk 0:00:06.8]} 1-0

[Event "*** Titled Tuesday Blitz"]
[Site "Chess.com"]
[Date "2021.03.02"]
[Round "9"]
[White "Abund"]
[Black "Diamantidis_13"]
[Result "1-0"]
[WhiteElo "2652"]
[BlackElo "2428"]
[TimeControl "180+1"]
[EndTime "11:47:04 PST"]
[Termination "Abund won by resignation"]

1. e4 {[%clk 0:02:57.6]} 1... c5 {[%clk 0:02:59]} 2. Nf3 {[%clk 0:02:57.3]} 2...
Nc6 {[%clk 0:02:57.4]} 3. Bb5 {[%clk 0:02:57.2]} 3... Nf6 {[%clk 0:02:54.9]} 4.
Nc3 {[%clk 0:02:55.9]} 4... a6 {[%clk 0:02:52]} 5. Bxc6 {[%clk 0:02:54]} 5...
dxc6 {[%clk 0:02:52.9]} 6. e5 {[%clk 0:02:40.5]} 6... Nd5 {[%clk 0:02:52.4]} 7.
Ne4 {[%clk 0:02:35]} 7... b6 {[%clk 0:02:47.4]} 8. h3 {[%clk 0:02:21.7]} 8... g6
{[%clk 0:02:38]} 9. d3 {[%clk 0:02:16.8]} 9... Bg7 {[%clk 0:02:37.9]} 10. Qe2
{[%clk 0:02:10.6]} 10... Nc7 {[%clk 0:02:27]} 11. Nf6+ {[%clk 0:01:57.6]} 11...
Kf8 {[%clk 0:02:19.7]} 12. Ne4 {[%clk 0:01:49.7]} 12... Ne6 {[%clk 0:02:17.9]}
13. O-O {[%clk 0:01:48.6]} 13... Nd4 {[%clk 0:02:12.2]} 14. Nxd4 {[%clk
0:01:26.8]} 14... Qxd4 {[%clk 0:01:52.6]} 15. Bf4 {[%clk 0:01:14.8]} 15... Bxe5
{[%clk 0:01:39.7]} 16. c3 {[%clk 0:01:05.9]} 16... Qd5 {[%clk 0:01:39.8]} 17.
Bh6+ {[%clk 0:01:01]} 17... Bg7 {[%clk 0:01:38.6]} 18. Qe3 {[%clk 0:01:01.4]}
18... Qh5 {[%clk 0:01:29.8]} 19. Bf4 {[%clk 0:00:56.5]} 19... e5 {[%clk
0:01:20.3]} 20. Bh2 {[%clk 0:00:28.6]} 20... f5 {[%clk 0:01:16.7]} 21. Ng3
{[%clk 0:00:19.2]} 21... Qh4 {[%clk 0:01:14.9]} 22. f4 {[%clk 0:00:19.4]} 22...
exf4 {[%clk 0:00:41.7]} 23. Rxf4 {[%clk 0:00:19.1]} 23... Qe7 {[%clk 0:00:42.1]}
24. Qf2 {[%clk 0:00:15.7]} 24... Kg8 {[%clk 0:00:39.1]} 25. Re1 {[%clk
0:00:14.9]} 25... Qf7 {[%clk 0:00:39]} 26. Ne4 {[%clk 0:00:13.9]} 26... Be6
{[%clk 0:00:26]} 27. Ng5 {[%clk 0:00:13.4]} 27... Bxa2 {[%clk 0:00:18.3]} 28.
Nxf7 {[%clk 0:00:13.5]} 28... Bxf7 {[%clk 0:00:19.2]} 29. Rf3 {[%clk 0:00:12.9]}
29... Bf6 {[%clk 0:00:17.5]} 30. Be5 {[%clk 0:00:13.8]} 30... Kg7 {[%clk
0:00:17.3]} 31. Qh4 {[%clk 0:00:13]} 31... Bxe5 {[%clk 0:00:17]} 32. Rxe5 {[%clk
0:00:13.9]} 32... Rhd8 {[%clk 0:00:15.5]} 33. Re7 {[%clk 0:00:13.3]} 1-0